[Event "Championnat d'Europe de Blitz"]
[Date "2024.12.09"]
[White "Iskos, Alexandros"]
[Black "Schneider, Ilja"]
[WhiteElo "2132"]
[BlackElo "2414"]
[Round "3.47"]
[Result "0-1"]
[TimeControl "180+2"]

1. d4 {[%clk 00:03:03]} Nf6 {[%emt 00:00:03] [%clk 00:03:03]} 2. Nc3 {[%clk
00:03:04]} d5 {[%emt 00:00:04] [%clk 00:03:00]} 3. Bf4 {[%clk 00:03:05]} g6
{[%emt 00:00:09] [%clk 00:02:53]} 4. e3 {[%emt 00:00:01] [%clk 00:03:06]} Bg7
{[%emt 00:00:04] [%clk 00:02:52]} 5. h4 {[%clk 00:03:07]} h5 {[%emt 00:00:04]
[%clk 00:02:50]} 6. Bd3 {[%emt 00:00:12] [%clk 00:02:57]} O-O {[%emt 00:00:07]
[%clk 00:02:45]} 7. Nh3 {[%emt 00:00:11] [%clk 00:02:48]} c5 {[%emt 00:00:05]
[%clk 00:02:42]} 8. dxc5 {[%emt 00:00:02] [%clk 00:02:47]} Qa5 {[%emt 00:00:07]
[%clk 00:02:38]} 9. Ng5 {[%emt 00:00:15] [%clk 00:02:35]} Nc6 {[%emt 00:00:09]
[%clk 00:02:31]} 10. O-O {[%emt 00:00:25] [%clk 00:02:11]} e5 {[%emt 00:00:04]
[%clk 00:02:29]} 11. Bg3 {[%emt 00:00:05] [%clk 00:02:07]} Qxc5 {[%emt 00:00:08]
[%clk 00:02:24]} 12. a3 {[%emt 00:00:08] [%clk 00:02:01]} Bg4 {[%emt 00:00:07]
[%clk 00:02:19]} 13. Be2 {[%emt 00:00:03] [%clk 00:02:00]} Rad8 {[%emt 00:00:20]
[%clk 00:02:02]} 14. Bxg4 {[%emt 00:00:06] [%clk 00:01:55]} Nxg4 {[%emt
00:00:01] [%clk 00:02:03]} 15. Qe2 {[%clk 00:01:57]} Rfe8 {[%emt 00:00:14] [%clk
00:01:51]} 16. Rad1 {[%emt 00:00:01] [%clk 00:01:58]} Nd4 {[%emt 00:00:17] [%clk
00:01:36]} 17. exd4 {[%emt 00:00:08] [%clk 00:01:51]} exd4 {[%emt 00:00:01]
[%clk 00:01:37]} 18. Qf3 {[%clk 00:01:53]} f6 {[%emt 00:00:14] [%clk 00:01:25]}
19. Ne2 {[%emt 00:00:45] [%clk 00:01:10]} fxg5 {[%emt 00:00:03] [%clk 00:01:24]}
20. hxg5 {[%emt 00:00:03] [%clk 00:01:09]} Qxc2 {[%emt 00:00:16] [%clk
00:01:11]} 21. Nxd4 {[%clk 00:01:10]} Qxb2 {[%emt 00:00:13] [%clk 00:01:00]} 22.
Qd3 {[%emt 00:00:28] [%clk 00:00:44]} Qxd4 {[%emt 00:00:30] [%clk 00:00:31]} 23.
Qxd4 {[%emt 00:00:19] [%clk 00:00:27]} Bxd4 {[%clk 00:00:32]} 24. Rxd4 {[%clk
00:00:29]} Re4 {[%clk 00:00:34]} 25. Re1 {[%emt 00:00:23] [%clk 00:00:09]} 0-1

[Site "Europe Echecs"]

[Event "Championnat d'Europe de Blitz"]
[Date "2024.12.09"]
[White "Pezelj, Sinisa"]
[Black "Zlatkov, Anton"]
[WhiteElo "2201"]
[BlackElo "2324"]
[Round "3.48"]
[Result "0-1"]
[TimeControl "180+2"]

1. Nf3 {[%clk 00:03:03]} Nf6 {[%emt 00:00:03] [%clk 00:03:04]} 2. g3 {[%clk
00:03:03]} g6 {[%clk 00:03:05]} 3. Bg2 {[%clk 00:03:04]} Bg7 {[%clk 00:03:06]}
4. c4 {[%emt 00:00:02] [%clk 00:03:05]} O-O {[%emt 00:00:02] [%clk 00:03:06]} 5.
Nc3 {[%emt 00:00:01] [%clk 00:03:06]} d6 {[%emt 00:00:06] [%clk 00:03:02]} 6. d4
{[%emt 00:00:01] [%clk 00:03:07]} Nbd7 {[%emt 00:00:03] [%clk 00:03:02]} 7. O-O
{[%emt 00:00:02] [%clk 00:03:06]} e5 {[%emt 00:00:01] [%clk 00:03:03]} 8. e3
{[%emt 00:00:15] [%clk 00:02:54]} Re8 {[%emt 00:00:08] [%clk 00:02:56]} 9. b3
{[%emt 00:00:15] [%clk 00:02:42]} Nf8 {[%emt 00:00:13] [%clk 00:02:45]} 10. Bb2
{[%emt 00:00:02] [%clk 00:02:41]} e4 {[%emt 00:00:03] [%clk 00:02:45]} 11. Nd2
{[%emt 00:00:03] [%clk 00:02:39]} Bf5 {[%emt 00:00:01] [%clk 00:02:46]} 12. d5
{[%emt 00:00:16] [%clk 00:02:26]} h5 {[%emt 00:00:05] [%clk 00:02:42]} 13. h3
{[%emt 00:00:46] [%clk 00:01:42]} Qd7 {[%emt 00:00:12] [%clk 00:02:33]} 14. Kh2
{[%emt 00:00:09] [%clk 00:01:35]} N8h7 {[%clk 00:02:33]} 15. h4 {[%emt 00:00:18]
[%clk 00:01:19]} g5 {[%emt 00:00:01] [%clk 00:02:34]} 16. f3 {[%emt 00:00:06]
[%clk 00:01:15]} gxh4 {[%emt 00:00:21] [%clk 00:02:15]} 17. gxh4 {[%emt
00:00:10] [%clk 00:01:07]} exf3 {[%emt 00:00:01] [%clk 00:02:16]} 18. Qxf3
{[%emt 00:00:22] [%clk 00:00:48]} Ng4+ {[%emt 00:00:22] [%clk 00:01:55]} 19. Kh1
{[%emt 00:00:03] [%clk 00:00:46]} Nxe3 {[%emt 00:00:10] [%clk 00:01:48]} 20. Rg1
{[%emt 00:00:19] [%clk 00:00:30]} Bg4 {[%emt 00:00:12] [%clk 00:01:38]} 21. Qf2
{[%emt 00:00:01] [%clk 00:00:30]} Nc2 {[%emt 00:00:49] [%clk 00:00:51]} 22. Rac1
{[%emt 00:00:09] [%clk 00:00:24]} Bd4 {[%emt 00:00:05] [%clk 00:00:47]} 23. Qg3
{[%emt 00:00:07] [%clk 00:00:19]} Bxg1 {[%emt 00:00:05] [%clk 00:00:44]} 24.
Rxg1 {[%emt 00:00:09] [%clk 00:00:12]} Ne3 {[%emt 00:00:01] [%clk 00:00:45]} 25.
Nce4 {[%emt 00:00:05] [%clk 00:00:09]} Nxg2 {[%emt 00:00:11] [%clk 00:00:36]}
26. Rxg2 {[%emt 00:00:03] [%clk 00:00:08]} Qf5 {[%emt 00:00:02] [%clk 00:00:37]}
27. Rf2 {[%emt 00:00:01] [%clk 00:00:09]} Qg6 {[%clk 00:00:38]} 28. Nf6+ {[%emt
00:00:02] [%clk 00:00:09]} Nxf6 {[%emt 00:00:01] [%clk 00:00:39]} 29. Rxf6
{[%clk 00:00:10]} Qc2 {[%emt 00:00:03] [%clk 00:00:38]} 30. Qc3 {[%emt 00:00:09]
[%clk 00:00:03]} Re1+ {[%emt 00:00:02] [%clk 00:00:38]} 31. Kg2 {[%clk
00:00:04]} Re2+ {[%emt 00:00:01] [%clk 00:00:39]} 32. Kg3 {[%emt 00:00:02] [%clk
00:00:04]} Qxc3+ {[%clk 00:00:40]} 33. Bxc3 {[%clk 00:00:05]} Re3+ {[%clk
00:00:41]} 34. Kf4 {[%emt 00:00:02] [%clk 00:00:06]} Rxc3 {[%emt 00:00:02] [%clk
00:00:41]} 35. Ne4 {[%emt 00:00:01] [%clk 00:00:07]} Rc1 {[%emt 00:00:04] [%clk
00:00:39]} 36. Kg5 {[%emt 00:00:02] [%clk 00:00:06]} Re8 {[%clk 00:00:41]} 37.
Rf4 {[%emt 00:00:02] [%clk 00:00:06]} Re5+ {[%emt 00:00:02] [%clk 00:00:40]} 38.
Kh6 {[%emt 00:00:02] [%clk 00:00:07]} f5 {[%emt 00:00:02] [%clk 00:00:40]} 39.
Nf6+ {[%emt 00:00:02] [%clk 00:00:06]} Kf7 {[%emt 00:00:01] [%clk 00:00:41]} 40.
Nd7 {[%emt 00:00:04] [%clk 00:00:04]} Re7 {[%emt 00:00:01] [%clk 00:00:42]} 0-1

[Site "Europe Echecs"]

[Event "Championnat d'Europe de Blitz"]
[Date "2024.12.09"]
[White "Tudor, Henry Edward"]
[Black "Diermair, Andreas"]
[WhiteElo "2375"]
[BlackElo "2433"]
[Round "3.49"]
[Result "0-1"]
[TimeControl "180+2"]

1. d4 {[%emt 00:00:03] [%clk 00:03:03]} Nf6 {[%emt 00:00:02] [%clk 00:03:01]} 2.
c4 {[%clk 00:03:05]} e6 {[%emt 00:00:02] [%clk 00:03:01]} 3. Nc3 {[%clk
00:03:07]} Bb4 {[%emt 00:00:01] [%clk 00:03:02]} 4. e3 {[%clk 00:03:08]} c5
{[%emt 00:00:02] [%clk 00:03:01]} 5. Nge2 {[%emt 00:00:04] [%clk 00:03:07]} d5
{[%emt 00:00:01] [%clk 00:03:02]} 6. a3 {[%emt 00:00:02] [%clk 00:03:07]} Ba5
{[%emt 00:00:01] [%clk 00:03:03]} 7. dxc5 {[%emt 00:00:05] [%clk 00:03:04]} dxc4
{[%emt 00:00:01] [%clk 00:03:04]} 8. Bd2 {[%emt 00:00:04] [%clk 00:03:02]} Nbd7
{[%emt 00:00:16] [%clk 00:02:50]} 9. Qa4 {[%emt 00:00:13] [%clk 00:02:51]} O-O
{[%emt 00:00:06] [%clk 00:02:46]} 10. Nd4 {[%emt 00:00:04] [%clk 00:02:49]} e5
{[%emt 00:00:12] [%clk 00:02:37]} 11. Nf3 {[%emt 00:00:25] [%clk 00:02:26]} Nxc5
{[%emt 00:00:23] [%clk 00:02:16]} 12. Qxc4 {[%emt 00:00:01] [%clk 00:02:27]} Bb6
{[%emt 00:00:03] [%clk 00:02:14]} 13. Rd1 {[%emt 00:00:36] [%clk 00:01:53]} Be6
{[%emt 00:00:01] [%clk 00:02:14]} 14. Qh4 {[%clk 00:01:54]} Bb3 {[%emt 00:00:28]
[%clk 00:01:49]} 15. Rc1 {[%emt 00:00:08] [%clk 00:01:48]} Re8 {[%emt 00:00:04]
[%clk 00:01:47]} 16. Qb4 {[%emt 00:00:38] [%clk 00:01:12]} Rc8 {[%emt 00:00:01]
[%clk 00:01:48]} 17. a4 {[%emt 00:00:22] [%clk 00:00:52]} a5 {[%emt 00:00:15]
[%clk 00:01:35]} 18. Qa3 {[%clk 00:00:54]} Nd5 {[%emt 00:00:27] [%clk 00:01:11]}
19. Bb5 {[%emt 00:00:19] [%clk 00:00:37]} Nb4 {[%emt 00:00:03] [%clk 00:01:09]}
20. O-O {[%emt 00:00:03] [%clk 00:00:36]} Re6 {[%emt 00:00:04] [%clk 00:01:07]}
21. Qa1 {[%emt 00:00:13] [%clk 00:00:25]} h5 {[%emt 00:00:11] [%clk 00:00:58]}
22. Qb1 {[%emt 00:00:07] [%clk 00:00:20]} e4 {[%emt 00:00:05] [%clk 00:00:55]}
23. Nd4 {[%emt 00:00:01] [%clk 00:00:21]} Re5 {[%emt 00:00:15] [%clk 00:00:42]}
24. Nxe4 {[%emt 00:00:09] [%clk 00:00:14]} Bd5 {[%emt 00:00:32] [%clk 00:00:12]}
25. Nxc5 {[%emt 00:00:03] [%clk 00:00:13]} Bxc5 {[%clk 00:00:13]} 26. Bxb4
{[%emt 00:00:07] [%clk 00:00:08]} axb4 {[%emt 00:00:02] [%clk 00:00:13]} 27. Be2
{[%emt 00:00:05] [%clk 00:00:05]} Bxd4 {[%emt 00:00:02] [%clk 00:00:13]} 28.
Rxc8 {[%clk 00:00:06]} Qxc8 {[%emt 00:00:01] [%clk 00:00:15]} 29. Bxh5 {[%emt
00:00:05] [%clk 00:00:03]} Rxh5 {[%emt 00:00:02] [%clk 00:00:15]} 30. exd4
{[%clk 00:00:05]} Bxg2 {[%emt 00:00:02] [%clk 00:00:15]} 31. Re1 {[%emt
00:00:01] [%clk 00:00:05]} Bc6 {[%emt 00:00:03] [%clk 00:00:14]} 32. Re3 {[%emt
00:00:03] [%clk 00:00:05]} Rg5+ {[%emt 00:00:01] [%clk 00:00:14]} 33. Rg3 {[%emt
00:00:01] [%clk 00:00:06]} Rxg3+ {[%clk 00:00:15]} 34. hxg3 {[%emt 00:00:01]
[%clk 00:00:07]} Qh3 {[%emt 00:00:01] [%clk 00:00:16]} 35. Qf1 {[%clk 00:00:08]}
Qh1# {[%emt 00:00:02] [%clk 00:00:17]} 0-1

[Site "Europe Echecs"]

[Event "Championnat d'Europe de Blitz"]
[Date "2024.12.09"]
[White "Safarli, Eltaj"]
[Black "Nikolaev, Georgi"]
[WhiteElo "2610"]
[BlackElo "2032"]
[Round "3.50"]
[Result "1-0"]
[TimeControl "180+2"]

1. e4 {[%emt 00:00:03] [%clk 00:03:02]} e5 {[%clk 00:03:04]} 2. Nf3 {[%clk
00:03:03]} Nc6 {[%emt 00:00:04] [%clk 00:03:02]} 3. Bb5 {[%emt 00:00:02] [%clk
00:03:03]} a6 {[%emt 00:00:02] [%clk 00:03:02]} 4. Ba4 {[%emt 00:00:01] [%clk
00:03:04]} Nf6 {[%emt 00:00:01] [%clk 00:03:03]} 5. Nc3 {[%emt 00:00:01] [%clk
00:03:05]} b5 {[%emt 00:00:11] [%clk 00:02:54]} 6. Bb3 {[%emt 00:00:01] [%clk
00:03:06]} Bc5 {[%emt 00:00:09] [%clk 00:02:47]} 7. a4 {[%emt 00:00:03] [%clk
00:03:05]} Rb8 {[%emt 00:00:10] [%clk 00:02:39]} 8. axb5 {[%emt 00:00:02] [%clk
00:03:05]} axb5 {[%clk 00:02:41]} 9. d3 {[%emt 00:00:03] [%clk 00:03:04]} h6
{[%emt 00:00:16] [%clk 00:02:28]} 10. O-O {[%emt 00:00:02] [%clk 00:03:03]} d6
{[%emt 00:00:05] [%clk 00:02:25]} 11. Nd5 {[%emt 00:00:02] [%clk 00:03:03]} O-O
{[%emt 00:00:19] [%clk 00:02:08]} 12. Be3 {[%emt 00:00:02] [%clk 00:03:03]} Bxe3
{[%emt 00:00:10] [%clk 00:02:00]} 13. Nxf6+ {[%emt 00:00:04] [%clk 00:03:01]}
Qxf6 {[%emt 00:00:03] [%clk 00:01:59]} 14. fxe3 {[%emt 00:00:01] [%clk
00:03:02]} Qe7 {[%emt 00:00:29] [%clk 00:01:33]} 15. Qe1 {[%emt 00:00:01] [%clk
00:03:02]} Be6 {[%emt 00:00:03] [%clk 00:01:32]} 16. Nh4 {[%emt 00:00:02] [%clk
00:03:02]} Bxb3 {[%emt 00:00:11] [%clk 00:01:23]} 17. Nf5 {[%emt 00:00:12] [%clk
00:02:52]} Qg5 {[%emt 00:00:25] [%clk 00:01:00]} 18. cxb3 {[%emt 00:00:02] [%clk
00:02:53]} Ne7 {[%emt 00:00:42] [%clk 00:00:20]} 19. Nh4 {[%emt 00:00:38] [%clk
00:02:16]} f5 {[%emt 00:00:10] [%clk 00:00:12]} 20. Nf3 {[%emt 00:00:16] [%clk
00:02:01]} Qg6 {[%emt 00:00:01] [%clk 00:00:14]} 21. exf5 {[%emt 00:00:02] [%clk
00:02:02]} Nxf5 {[%emt 00:00:02] [%clk 00:00:14]} 22. e4 {[%emt 00:00:02] [%clk
00:02:01]} Nd4 {[%emt 00:00:07] [%clk 00:00:09]} 23. Nxd4 {[%emt 00:00:01] [%clk
00:02:02]} exd4 {[%clk 00:00:10]} 24. Qh4 {[%emt 00:00:13] [%clk 00:01:51]} c5
{[%emt 00:00:06] [%clk 00:00:06]} 25. Qe7 {[%emt 00:00:08] [%clk 00:01:45]} Rbe8
{[%emt 00:00:04] [%clk 00:00:05]} 26. Qb7 {[%emt 00:00:07] [%clk 00:01:39]} b4
{[%emt 00:00:02] [%clk 00:00:05]} 27. Qd5+ {[%emt 00:00:01] [%clk 00:01:40]} Qe6
{[%emt 00:00:04] [%clk 00:00:04]} 28. Rxf8+ {[%emt 00:00:17] [%clk 00:01:24]}
Kxf8 {[%clk 00:00:06]} 29. Qh5 {[%emt 00:00:29] [%clk 00:00:57]} Kg8 {[%emt
00:00:02] [%clk 00:00:06]} 30. Rf1 {[%emt 00:00:42] [%clk 00:00:17]} Rf8 {[%clk
00:00:08]} 31. Rxf8+ {[%emt 00:00:04] [%clk 00:00:14]} Kxf8 {[%clk 00:00:09]}
32. Qf5+ {[%clk 00:00:15]} Ke7 {[%emt 00:00:06] [%clk 00:00:05]} 33. Qh7 {[%emt
00:00:03] [%clk 00:00:14]} Qf6 {[%emt 00:00:02] [%clk 00:00:06]} 34. g3 {[%emt
00:00:05] [%clk 00:00:10]} Qg5 {[%emt 00:00:02] [%clk 00:00:07]} 35. Kg2 {[%emt
00:00:03] [%clk 00:00:08]} Qd2+ {[%emt 00:00:02] [%clk 00:00:06]} 36. Kh3 {[%clk
00:00:10]} Qg5 {[%emt 00:00:02] [%clk 00:00:07]} 37. Qf5 {[%emt 00:00:02] [%clk
00:00:10]} Qd2 {[%emt 00:00:06] [%clk 00:00:03]} 38. Qg6 {[%emt 00:00:02] [%clk
00:00:11]} Qxb2 {[%emt 00:00:02] [%clk 00:00:03]} 39. Qxg7+ {[%emt 00:00:01]
[%clk 00:00:11]} Kd8 {[%clk 00:00:04]} 40. Qxh6 {[%emt 00:00:08] [%clk
00:00:05]} Kc7 {[%emt 00:00:02] [%clk 00:00:05]} 41. Qg7+ {[%emt 00:00:02] [%clk
00:00:04]} Kc6 {[%emt 00:00:01] [%clk 00:00:06]} 42. Qf7 {[%emt 00:00:02] [%clk
00:00:04]} Qb1 {[%emt 00:00:02] [%clk 00:00:06]} 43. Qd5+ {[%emt 00:00:01] [%clk
00:00:05]} Kc7 {[%clk 00:00:07]} 44. Qf7+ {[%emt 00:00:01] [%clk 00:00:06]} Kc6
{[%clk 00:00:09]} 45. Qd5+ {[%emt 00:00:01] [%clk 00:00:06]} Kc7 {[%emt
00:00:01] [%clk 00:00:10]} 46. e5 {[%emt 00:00:02] [%clk 00:00:06]} Qxd3 {[%emt
00:00:03] [%clk 00:00:10]} 47. Qxd6+ {[%emt 00:00:01] [%clk 00:00:06]} Kb7
{[%emt 00:00:02] [%clk 00:00:11]} 48. Qd5+ {[%emt 00:00:02] [%clk 00:00:06]} Kb6
{[%emt 00:00:02] [%clk 00:00:11]} 49. e6 {[%clk 00:00:07]} Qf1+ {[%emt 00:00:07]
[%clk 00:00:06]} 50. Kg4 {[%emt 00:00:01] [%clk 00:00:07]} Qe2+ {[%emt 00:00:03]
[%clk 00:00:05]} 51. Kf5 {[%emt 00:00:03] [%clk 00:00:07]} d3 {[%emt 00:00:02]
[%clk 00:00:05]} 52. Qd6+ {[%clk 00:00:08]} Kb5 {[%emt 00:00:01] [%clk
00:00:06]} 53. Qb8+ {[%emt 00:00:02] [%clk 00:00:08]} Ka5 {[%emt 00:00:03] [%clk
00:00:05]} 54. Qa7+ {[%emt 00:00:02] [%clk 00:00:08]} Kb5 {[%clk 00:00:06]} 55.
Qd7+ {[%emt 00:00:01] [%clk 00:00:08]} Ka5 {[%emt 00:00:01] [%clk 00:00:08]} 56.
e7 {[%emt 00:00:03] [%clk 00:00:07]} d2 {[%emt 00:00:03] [%clk 00:00:07]} 57.
e8=Q {[%emt 00:00:02] [%clk 00:00:07]} Qxe8 {[%emt 00:00:04] [%clk 00:00:05]}
58. Qxe8 {[%clk 00:00:08]} d1=Q {[%emt 00:00:02]} 59. Qa8+ {[%emt 00:00:04]
[%clk 00:00:05]} Kb5 {[%clk 00:00:08]} 60. Qb7+ {[%clk 00:00:06]} Ka5 {[%emt
00:00:01] [%clk 00:00:08]} 61. Qc7+ {[%emt 00:00:02] [%clk 00:00:06]} Kb5 {[%clk
00:00:10]} 62. Qb8+ {[%clk 00:00:07]} Ka5 {[%emt 00:00:01] [%clk 00:00:11]} 63.
Qg8 {[%emt 00:00:05] [%clk 00:00:03]} Qf3 {[%emt 00:00:05] [%clk 00:00:08]} 64.
Ke5 {[%emt 00:00:02] [%clk 00:00:04]} Qe2 {[%emt 00:00:01] [%clk 00:00:10]} 65.
Kd6 {[%emt 00:00:01] [%clk 00:00:04]} Qxh2 {[%emt 00:00:05] [%clk 00:00:07]} 66.
Kxc5 {[%emt 00:00:02] [%clk 00:00:04]} Qc2 {[%emt 00:00:05] [%clk 00:00:04]} 67.
Qc4 {[%emt 00:00:02] [%clk 00:00:04]} Qf2 {[%emt 00:00:02] [%clk 00:00:04]} 68.
Kd6 {[%emt 00:00:03] [%clk 00:00:04]} Qxg3+ {[%emt 00:00:02] [%clk 00:00:04]}
69. Kd7 {[%clk 00:00:05]} Qc3 {[%emt 00:00:04] [%clk 00:00:00]} 70. Ke6 {[%emt
00:00:07]} 1-0

[Site "Europe Echecs"]

[Event "Championnat d'Europe de Blitz"]
[Date "2024.12.09"]
[White "Balinski, Damian"]
[Black "Lagarde, Maxime"]
[WhiteElo "2203"]
[BlackElo "2600"]
[Round "3.51"]
[Result "0-1"]
[TimeControl "180+2"]

1. c4 {[%emt 00:00:03] [%clk 00:03:03]} f5 {[%clk 00:03:03]} 2. g3 {[%emt
00:00:02] [%clk 00:03:02]} Nf6 {[%emt 00:00:01] [%clk 00:03:04]} 3. Bg2 {[%emt
00:00:01] [%clk 00:03:03]} g6 {[%emt 00:00:01] [%clk 00:03:05]} 4. Nh3 {[%emt
00:00:12] [%clk 00:02:53]} Bg7 {[%emt 00:00:04] [%clk 00:03:03]} 5. d4 {[%emt
00:00:03] [%clk 00:02:52]} d6 {[%emt 00:00:02] [%clk 00:03:03]} 6. Nf4 {[%emt
00:00:09] [%clk 00:02:45]} e5 {[%emt 00:00:08] [%clk 00:02:57]} 7. dxe5 {[%emt
00:00:02] [%clk 00:02:45]} dxe5 {[%clk 00:02:58]} 8. Qxd8+ {[%emt 00:00:02]
[%clk 00:02:44]} Kxd8 {[%emt 00:00:02] [%clk 00:02:59]} 9. Nd5 {[%emt 00:00:11]
[%clk 00:02:35]} c6 {[%emt 00:00:14] [%clk 00:02:48]} 10. Nxf6 {[%emt 00:00:06]
[%clk 00:02:30]} Bxf6 {[%clk 00:02:49]} 11. e4 {[%emt 00:00:11] [%clk 00:02:21]}
Na6 {[%emt 00:00:04] [%clk 00:02:47]} 12. Nc3 {[%emt 00:00:20] [%clk 00:02:02]}
Be6 {[%emt 00:00:05] [%clk 00:02:45]} 13. b3 {[%emt 00:00:16] [%clk 00:01:49]}
Nb4 {[%emt 00:00:11] [%clk 00:02:36]} 14. O-O {[%emt 00:00:03] [%clk 00:01:47]}
Kc7 {[%emt 00:00:01] [%clk 00:02:37]} 15. Bb2 {[%emt 00:00:21] [%clk 00:01:28]}
Rad8 {[%emt 00:00:08] [%clk 00:02:31]} 16. Rad1 {[%emt 00:00:04] [%clk
00:01:26]} Nc2 {[%emt 00:00:57] [%clk 00:01:36]} 17. Rxd8 {[%emt 00:00:13] [%clk
00:01:16]} Rxd8 {[%clk 00:01:37]} 18. Rd1 {[%emt 00:00:03] [%clk 00:01:15]} Nd4
{[%clk 00:01:38]} 19. Kf1 {[%emt 00:00:10] [%clk 00:01:07]} a6 {[%emt 00:00:29]
[%clk 00:01:11]} 20. Ne2 {[%emt 00:00:02] [%clk 00:01:07]} b5 {[%emt 00:00:10]
[%clk 00:01:03]} 21. Bxd4 {[%emt 00:00:14] [%clk 00:00:55]} exd4 {[%emt
00:00:04] [%clk 00:01:01]} 22. Nf4 {[%emt 00:00:02] [%clk 00:00:54]} Bf7 {[%emt
00:00:04] [%clk 00:00:59]} 23. cxb5 {[%emt 00:00:10] [%clk 00:00:46]} axb5
{[%clk 00:01:00]} 24. exf5 {[%emt 00:00:01] [%clk 00:00:47]} gxf5 {[%emt
00:00:01] [%clk 00:01:01]} 25. Bh3 {[%emt 00:00:13] [%clk 00:00:37]} c5 {[%emt
00:00:01] [%clk 00:01:02]} 26. Bxf5 {[%emt 00:00:03] [%clk 00:00:35]} Kb6 {[%emt
00:00:06] [%clk 00:00:58]} 27. h4 {[%emt 00:00:19] [%clk 00:00:18]} h6 {[%emt
00:00:04] [%clk 00:00:55]} 28. Kg2 {[%emt 00:00:04] [%clk 00:00:17]} c4 {[%emt
00:00:04] [%clk 00:00:54]} 29. bxc4 {[%emt 00:00:01] [%clk 00:00:18]} bxc4
{[%emt 00:00:01] [%clk 00:00:55]} 30. f3 {[%emt 00:00:04] [%clk 00:00:16]} Be5
{[%emt 00:00:07] [%clk 00:00:49]} 31. Ne2 {[%emt 00:00:07] [%clk 00:00:10]} d3
{[%emt 00:00:02] [%clk 00:00:50]} 32. Nc1 {[%emt 00:00:03] [%clk 00:00:10]} d2
{[%emt 00:00:06] [%clk 00:00:45]} 33. Ne2 {[%emt 00:00:02] [%clk 00:00:10]} c3
{[%emt 00:00:01] [%clk 00:00:46]} 34. Bc2 {[%emt 00:00:08] [%clk 00:00:05]} Bxa2
{[%emt 00:00:05] [%clk 00:00:43]} 35. f4 {[%emt 00:00:02] [%clk 00:00:05]} Bg7
{[%emt 00:00:03] [%clk 00:00:41]} 36. g4 {[%emt 00:00:01] [%clk 00:00:05]} Bc4
{[%emt 00:00:03] [%clk 00:00:41]} 37. Kf3 {[%emt 00:00:02] [%clk 00:00:05]} Re8
{[%emt 00:00:04] [%clk 00:00:40]} 38. Ng3 {[%clk 00:00:06]} Bd5+ {[%emt
00:00:10] [%clk 00:00:32]} 39. Kf2 {[%emt 00:00:03] [%clk 00:00:05]} Bd4+ {[%emt
00:00:01] [%clk 00:00:32]} 40. Kf1 {[%emt 00:00:03] [%clk 00:00:04]} Bc4+ {[%emt
00:00:01] [%clk 00:00:33]} 41. Kg2 {[%emt 00:00:03] [%clk 00:00:04]} Re1 {[%emt
00:00:03] [%clk 00:00:31]} 42. f5 {[%emt 00:00:02] [%clk 00:00:04]} Bd5+ {[%emt
00:00:02] [%clk 00:00:32]} 43. Kh3 {[%emt 00:00:02] [%clk 00:00:04]} Bf3 {[%emt
00:00:02] [%clk 00:00:31]} 0-1

[Site "Europe Echecs"]

[Event "Championnat d'Europe de Blitz"]
[Date "2024.12.09"]
[White "Velickovski-Nejkovic, Maja"]
[Black "Kalezic, Blazo"]
[WhiteElo "1959"]
[BlackElo "2382"]
[Round "3.53"]
[Result "0-1"]
[TimeControl "180+2"]

1. c4 {[%emt 00:12:54] [%clk 00:03:03]} e5 {[%emt 00:00:05] [%clk 00:02:59]} 2.
Nc3 {[%emt 00:00:02] [%clk 00:03:03]} Nc6 {[%emt 00:00:02] [%clk 00:02:58]} 3.
Nf3 {[%emt 00:00:02] [%clk 00:03:03]} f5 {[%emt 00:00:02] [%clk 00:02:58]} 4. d3
{[%emt 00:00:01] [%clk 00:03:04]} Nf6 {[%emt 00:00:03] [%clk 00:02:58]} 5. g3
{[%clk 00:03:04]} Bb4 {[%emt 00:00:05] [%clk 00:02:56]} 6. Bd2 {[%emt 00:00:01]
[%clk 00:03:05]} O-O {[%emt 00:00:07] [%clk 00:02:51]} 7. Bg2 {[%emt 00:00:01]
[%clk 00:03:05]} e4 {[%emt 00:00:24] [%clk 00:02:30]} 8. dxe4 {[%emt 00:00:15]
[%clk 00:02:51]} fxe4 {[%emt 00:00:04] [%clk 00:02:29]} 9. Ng5 {[%emt 00:00:02]
[%clk 00:02:50]} Bxc3 {[%emt 00:00:06] [%clk 00:02:24]} 10. Bxc3 {[%emt
00:00:04] [%clk 00:02:49]} e3 {[%emt 00:00:23] [%clk 00:02:03]} 11. Bxf6 {[%emt
00:00:25] [%clk 00:02:26]} exf2+ {[%emt 00:00:21] [%clk 00:01:44]} 12. Kf1
{[%emt 00:00:02] [%clk 00:02:26]} Qxf6 {[%emt 00:00:06] [%clk 00:01:41]} 13.
Qd5+ {[%emt 00:00:20] [%clk 00:02:07]} Kh8 {[%emt 00:00:04] [%clk 00:01:40]} 14.
h4 {[%emt 00:00:04] [%clk 00:02:05]} d6 {[%emt 00:00:04] [%clk 00:01:37]} 15.
Rd1 {[%emt 00:00:08] [%clk 00:01:59]} Ne5 {[%emt 00:00:13] [%clk 00:01:26]} 16.
Qe4 {[%emt 00:00:08] [%clk 00:01:52]} Bf5 {[%emt 00:00:04] [%clk 00:01:25]} 17.
Qd4 {[%emt 00:00:07] [%clk 00:01:47]} Rae8 {[%emt 00:00:21] [%clk 00:01:06]} 18.
e4 {[%emt 00:00:06] [%clk 00:01:44]} Bg4 {[%emt 00:00:11] [%clk 00:00:56]} 19.
Rd2 {[%emt 00:00:03] [%clk 00:01:44]} c5 {[%emt 00:00:06] [%clk 00:00:52]} 20.
Qc3 {[%emt 00:00:13] [%clk 00:01:33]} h6 {[%emt 00:00:10] [%clk 00:00:44]} 21.
Qe3 {[%emt 00:00:08] [%clk 00:01:26]} Nxc4 {[%emt 00:00:03] [%clk 00:00:43]} 22.
Qd3 {[%emt 00:00:07] [%clk 00:01:21]} Nxd2+ {[%emt 00:00:07] [%clk 00:00:39]}
23. Qxd2 {[%emt 00:00:01] [%clk 00:01:21]} Qe5 {[%emt 00:00:02] [%clk 00:00:38]}
24. Qe3 {[%emt 00:00:22] [%clk 00:01:02]} Qxb2 {[%emt 00:00:06] [%clk 00:00:34]}
25. Nf3 {[%emt 00:00:07] [%clk 00:00:57]} Bxf3 {[%emt 00:00:15] [%clk 00:00:21]}
26. Bxf3 {[%emt 00:00:02] [%clk 00:00:58]} Qb1+ {[%emt 00:00:03] [%clk
00:00:20]} 27. Kxf2 {[%emt 00:00:03] [%clk 00:00:56]} Qxh1 {[%emt 00:00:03]
[%clk 00:00:19]} 0-1

[Site "Europe Echecs"]